Cogmind - Beta 13 X1 @@@ ROGUE MODE // 2023.08.04 @ 18:21:58 Player: Exp. Geonium Core Result: Destroyed by BA-HLG(R) with Subdweller Laser Performance ------------- Evolutions (0) 0 Regions Visited (2) 400 Robots Destroyed (29) 145 Value Destroyed (925) 925 Prototype IDs (0) 0 Alien Tech Used (0) 0 Bonus (-206) -206 TOTAL SCORE: 1264 Bonus ------- Friendly Fire -206 Cogmind --------- Core Integrity 0/250 Matter 300/300 Energy 100/100 System Corruption 0% Temperature Cool (6) Movement Treading (160) Location -10/Subcaves Parts ------- > --- POWER (1) -------- Subdweller Power Source > --- PROPULSION (2) --- Light Treads Spiked Treads > --- UTILITY (2) ------ (None) > --- WEAPON (2) ------- Autogun Barrage Gun > --- INVENTORY (5) ---- Light Treads Spiked Treads Battle Rifle Battle Rifle Grenade Launcher Peak State ------------ > --- POWER ------------ Makeshift Power Source > --- PROPULSION ------- Subdweller Monowheel Subdweller Monowheel > --- UTILITY ---------- Large Storage Unit Salvage Targeting Computer > --- WEAPON ----------- Autogun Barrage Gun > --- INVENTORY -------- Light Ion Engine Light Treads Spiked Treads Subdweller Monowheel Makeshift System Shield Assault Rifle Light Assault Rifle Autogun Autogun Battle Rifle Grenade Launcher Grenade Launcher Grenade Launcher Scrap Shield Fragment [Rating: 18] Favorites ----------- Power Makeshift Power Source Engine Makeshift Power Source Power Core Light Nuclear Core Propulsion Light Treads Treads Light Treads Leg Aluminum Leg Wheel Subdweller Monowheel Utility Salvage Targeting Computer Storage Large Storage Unit Processor Salvage Targeting Computer Protection Scrap Shield Weapon Autogun Energy Cannon Subdweller Beam Cannon Ballistic Gun Autogun Launcher Grenade Launcher Build | -11 -10 -10 ------- Run | Jun Mat Sub Slots Evolved . | . . . Power . | . . . Propulsion . | . . . Utility . | . . . Weapon . | . . . Parts Attached 34 | . 14 20 Power 4 | . 2 2 Engine 2 | . . 2 Core 2 | . 2 . Reactor . | . . . Propulsion 9 | . 3 6 Treads 5 | . 2 3 Leg 1 | . 1 . Wheel 3 | . . 3 Hover . | . . . Flight . | . . . Utility 5 | . 4 1 Device . | . . . Storage 2 | . 2 . Processor 1 | . 1 . Hackware . | . . . Protection 2 | . 1 1 Artifact . | . . . Weapon 16 | . 5 11 Energy Gun . | . . . Energy Cannon 2 | . . 2 Ballistic Gun 12 | . 5 7 Ballistic Cannon . | . . . Launcher 2 | . . 2 Special Weapon . | . . . Impact Weapon . | . . . Slashing Weapon . | . . . Piercing Weapon . | . . . Special Melee Weapon . | . . . Unidentified Prototypes . | . . . Parts Lost 7 | . 1 6 Power 2 | . . 2 Propulsion 3 | . 1 2 Utility 1 | . . 1 Weapon 1 | . . 1 Highest Loss Streak 2 | . 1 2 To Critical Strikes . | . . . Average Slot Usage (%) 88 | . 91 86 Engine 9 | . 3 11 Core 3 | . 10 1 Treads 15 | . 2 20 Leg 5 | . 20 . Wheel 4 | . . 6 Storage 7 | . 14 5 Processor 6 | . 10 5 Protection 5 | . 1 6 Energy Cannon 1 | . . 2 Ballistic Gun 25 | . 28 25 Naked Turns . | . . . Heaviest Build 35 | 10 32 35 Greatest Support 40 | 20 40 40 Greatest Overweight (x) 3 | . 3 1 Average Overweight (x) . | . . . Largest Inventory Capacity 15 | . 15 15 Average Capacity 9 | . 12 8 Most Carried 15 | . 12 15 Average Carried 8 | . 9 7 Final Capacity 15 | 8 15 5 Final Carried 10 | 6 10 5 Class Distribution -------------------- 88% | Mutant 8% | Derelict-Mutant Dominant Class ---------------- Mutant | -10/Materials Mutant | -10/Subcaves Resources | -11 -10 -10 ----------- Run | Jun Mat Sub Matter Collected 1244 | 195 261 788 Remotely . | . . . Salvage Created 1056 | . 458 598 Parts 67 | . 31 36 Haulers Intercepted 1 | . 1 . Recyclers Shooed 1 | . 1 . Parts Field Recycled . | . . . Retrieved Matter . | . . . Parts Self-Destructed 4 | . . 4 Prevented . | . . . Kills | -11 -10 -10 ------- Run | Jun Mat Sub Combat Hostiles Destroyed 24 | . 8 16 Guns 18 | . 8 10 Cannons 1 | . . 1 AOE 5 | . . 5 Classes Destroyed 10 | . 5 5 Worker 1 | . 1 . Hauler 1 | . 1 . Recycler 1 | . 1 . Swarmer 1 | . . 1 Grunt 7 | . 7 . Sentry 1 | . . 1 Artisan 1 | . . 1 Cobbler 1 | . . 1 Subdweller 15 | . 1 14 Zionite 2 | . . 2 Best Kill Streak 6 | . 3 6 Combat Bots Only 6 | . 2 6 Max Kills in Single Turn 2 | . 1 2 Gunslinging . | . . . Exploded 2 | . . 2 Melee . | . . . Uniques/NPCs Destroyed . | . . . Combat | -11 -10 -10 -------- Run | Jun Mat Sub Damage Taken 1964 | . 372 1592 Core 264 | . 85 179 Absorbed by Shields . | . . . Core Remaining (%) 100 | 100 . . Volleys Fired 136 | . 40 96 Largest 2 | . 2 2 Hottest 108 | . 43 108 Shots Fired 233 | . 80 153 Gun 198 | . 80 118 Cannon 21 | . . 21 Launcher 14 | . . 14 Special . | . . . Kinetic 198 | . 80 118 Thermal 21 | . . 21 Explosive 14 | . . 14 Electromagnetic . | . . . Robot Hit Streak 22 | . 7 22 Robot Miss Streak 5 | . 5 3 Penetration Max . | . . . Secondary Targets 1 | . . 1 Max Gunslinging Chain 1 | . . 1 Shots Hit Robots 157 | . 52 105 Core Hits 62 | . 25 37 Critical Kills 1 | . . 1 Critical Parts Destroyed 1 | . . 1 Critical Strikes 3 | . . 3 Destroy 3 | . . 3 Melee Attacks . | . . . Impact . | . . . Slashing . | . . . Piercing . | . . . Sneak Attacks . | . . . Combat Hostiles . | . . . Follow-up Attacks . | . . . Damage Inflicted 2511 | . 498 2013 Guns 1688 | . 492 1196 Cannons 168 | . . 168 Explosions 649 | . . 649 Melee . | . . . Ramming 6 | . 6 . Kinetic 1688 | . 492 1196 Thermal 168 | . . 168 Explosive 649 | . . 649 Electromagnetic . | . . . Impact . | . . . Slashing . | . . . Piercing . | . . . Highest Corruption . | . . . Average Corruption . | . . . Corruption Purged . | . . . Corruption Blocked . | . . . Overload Shots . | . . . Overflow Damage 4 | . . 4 Projectiles . | . . . Explosions 4 | . . 4 Melee . | . . . Knockbacks . | . . . Impact . | . . . Kinetic . | . . . Secondary . | . . . Self-Inflicted Damage 46 | . . 46 Shots 2 | . . 2 Rammed . | . . . Targets Rammed 1 | . 1 . Kicked 1 | . 1 . Crushed . | . . . Highest Temperature 244 | . 30 244 Average Temperature 23 | . 10 39 Received Heat Transfer 724 | . 186 538 Effects 2 | . . 2 Interference 2 | . . 2 Siege Activations . | . . . Robots Corrupted . | . . . Combat Hostiles . | . . . Parts Fried . | . . . Impact Corruptions . | . . . Robots Melted . | . . . Combat Hostiles . | . . . Parts Melted 2 | . 1 1 Heat Transferred 222 | . . 222 Parts Sabotaged . | . . . Parts Stolen . | . . . Parts Stripped . | . . . Power Chain Reactions . | . . . Missiles Intercepted . | . . . Alert | -11 -10 -10 ------- Run | Jun Mat Sub Peak Influence 137 | . 137 . Initial . | . . . Average 39 | . 39 . Maximum Alert Level . | . . . Low Security (%) 100 | . 100 . Level 1 . | . . . Level 2 . | . . . Level 3 . | . . . Level 4 . | . . . Level 5 . | . . . High Security . | . . . Max Security . | . . . Squads Dispatched 2 | . 2 . Investigation 1 | . 1 . Extermination . | . . . Reinforcement 1 | . 1 . Assault . | . . . Garrison . | . . . Intercept . | . . . Searches Triggered . | . . . Construction Impeded . | . . . Haulers Reinforced . | . . . Active Scanning Responses . | . . . Cargo Convoy Interrupts . | . . . Stealth | -11 -10 -10 --------- Run | Jun Mat Sub Distress Signals 2 | . 2 . Communications Jammed . | . . . Distress Signals . | . . . Times Spotted 29 | . 9 20 Peak Tracking Total 4 | . 2 4 Tactical Retreats . | . . . Traps | -11 -10 -10 ------- Run | Jun Mat Sub Traps Triggered 7 | . 3 4 Indirectly . | . . . Trap Hack Attempts . | . . . Triggered . | . . . Disarmed . | . . . Reprogrammed . | . . . Reused . | . . . Traps Extracted . | . . . Installed . | . . . Triggered . | . . . Machines | -11 -10 -10 ---------- Run | Jun Mat Sub Machines Disabled 1 | . 1 . Max in Single Turn 1 | . 1 . Machines Repaired . | . . . Machines Sabotaged . | . . . Overloaded Fab Kills . | . . . Hacking | -11 -10 -10 --------- Run | Jun Mat Sub Machines Accessed 3 | . 3 . Terminals 3 | . 3 . Fabricators . | . . . Repair Stations . | . . . Recycling Units . | . . . Scanalyzers . | . . . Garrison Access . | . . . Total Hacks 6 | . 6 . Successful 1 | . 1 . Failed 5 | . 5 . Catastrophic 1 | . 1 . Database Lockouts . | . . . Manual 2 | . 2 . Terminals 6 | . 6 . Fabricators . | . . . Repair Stations . | . . . Recycling Units . | . . . Scanalyzers . | . . . Garrison Access . | . . . Terminal Hacks 1 | . 1 . Branch Access Points 1 | . 1 . Fabricator Hacks . | . . . Repair Station Hacks . | . . . Recycling Unit Hacks . | . . . Scanalyzer . | . . . Garrison Access Hacks . | . . . Unauthorized Hacks . | . . . Terminals . | . . . Fabricators . | . . . Repair Stations . | . . . Recycling Units . | . . . Scanalyzers . | . . . Garrison Access . | . . . Data Cores Recovered . | . . . Used . | . . . Hacking Detections 3 | . 3 . Full Trace Events . | . . . Feedback Events . | . . . Feedback Blocked . | . . . Robot Schematics Acquired . | . . . Robots Built . | . . . Authchips . | . . . Time . | . . . Total Robot Build Rating . | . . . Part Schematics Acquired . | . . . Parts Built . | . . . Authchips . | . . . Time . | . . . Total Part Build Rating . | . . . Parts Repaired . | . . . Time . | . . . Parts Recycled . | . . . Recycled Matter . | . . . Retrieved Matter . | . . . Retrieved Components . | . . . Parts Scanalyzed . | . . . Part Schematics Acquired . | . . . Parts Damaged . | . . . Bothacking | -11 -10 -10 ------------ Run | Jun Mat Sub Used RIF Installer . | . . . Robots Hacked . | . . . Non-combat . | . . . Combat . | . . . Robot Hacks Applied . | . . . Relay Couplers Released . | . . . Fabnet Peak Effective % . | . . . Robots Rewired . | . . . Allies Hacked . | . . . Hacks Repelled . | . . . Allies | -11 -10 -10 -------- Run | Jun Mat Sub Total Allies . | . . . Largest Group . | . . . Highest-Rated Group . | . . . Highest-Rated Ally . | . . . Total Orders . | . . . Ally Attacks . | . . . Total Damage . | . . . Kills . | . . . Allies Corrupted . | . . . Allies Melted . | . . . Intel | -11 -10 -10 ------- Run | Jun Mat Sub Robot Analysis Total . | . . . Derelict Logs Recovered 1 | . . 1 Drone Launches . | . . . Drone Recoveries . | . . . Exploration | -11 -10 -10 ------------- Run | Jun Mat Sub Turns Passed 3871 | . 1125 2746 Spaces Moved 2203 | 1 558 1644 Core . | . . . Treads 1214 | . 55 1159 Legs 504 | 1 503 . Wheels 485 | . . 485 Hover . | . . . Flight . | . . . Fastest Speed 110 | 120 120 110 Average Speed 153 | 120 172 147 Slowest Speed 330 | 120 330 240 Overloaded Moves . | . . . Propulsion Burnouts . | . . . Robots Hopped . | . . . Cave-ins Triggered . | . . . Exploration Rate (%) 53 | 2 92 65 Regions Visited 2 Branch Regions 1 Pre-discovered Areas 1 | . . 1 Known Exits Taken . | . . . Unknown Exits Taken 2 | 1 1 . Scrap Searched 7 | . . 7 Spaces Dug . | . . . Terrain Destroyed 49 | . . 49 Melee . | . . . Projectile 1 | . . 1 AOE 48 | . . 48 Terrain Rammed . | . . . Walls Destroyed . | . . . Machines Disabled . | . . . Actions | -11 -10 -10 --------- Run | Jun Mat Sub Total 2490 | . 661 1829 Wait 61 | . 26 35 Move 2201 | . 557 1644 Hop . | . . . Pick Up 25 | . 10 15 Fast Attach 12 | . 6 6 Attach 7 | . 2 5 Detach 3 | . 1 2 Swap 15 | . 6 9 Drop 24 | . 12 12 Fire 136 | . 40 96 Melee . | . . . Ram . | . . . Kick 1 | . 1 . Crush . | . . . Escape Stasis . | . . . Rewire . | . . . Trap . | . . . Miscellaneous 5 | . . 5 Route ------- -11/Junkyard -10/Materials (discovered 5 exits: [*Mat x3] / *Min / [*Sub]) -10/Subcaves History --------- Turn | Location | Event 1 | -11/Junkyard | Discovered new exit (range 0) 1 | -11/Junkyard | Entered Materials 71 | -10/Materials | Discovered new exit (range 13) 344 | -10/Materials | Build established: Mutant 365 | -10/Materials | Discovered new exit (range 4) 490 | -10/Materials | Discovered new exit (range 5) 600 | -10/Materials | Derelicts attacked the area 654 | -10/Materials | Identified exit to Mines 1114 | -10/Materials | Discovered new exit (range 8) 1126 | -10/Materials | Entered Subcaves 1259 | -10/Subcaves | A swath of the cavern ceiling suddenly collapsed 1299 | -10/Subcaves | Ambushed by Subdweller buried in earth 1302 | -10/Subcaves | Ambushed by Subdweller buried in earth 1305 | -10/Subcaves | Ambushed by Subdweller buried in earth 1309 | -10/Subcaves | Ambushed by Subdweller buried in earth 1379 | -10/Subcaves | Core integrity fell below 50% 1574 | -10/Subcaves | Learned location of Zion (-6) 1574 | -10/Subcaves | Met a Zionite searching for "candidates" 1722 | -10/Subcaves | Ambushed by Subdweller buried in earth 2074 | -10/Subcaves | Shifting Twisted Machinery released Sub. Machine Gun 2079 | -10/Subcaves | Shifting Twisted Machinery released Scrap Shield 2242 | -10/Subcaves | Core integrity fell below 20% 2263 | -10/Subcaves | Build established: Derelict-Mutant 2592 | -10/Subcaves | Build established: Mutant 3170 | -10/Subcaves | Shifting Twisted Machinery released Spk. Treads 3177 | -10/Subcaves | Shifting Twisted Machinery released Battle Rifle 3443 | -10/Subcaves | Disturbed a concealed Subdweller 3549 | -10/Subcaves | Learned Materials terminal intel 3568 | -10/Subcaves | Shifting Twisted Machinery released Sub. Shrapnel Launcher 3570 | -10/Subcaves | Shifting Twisted Machinery released Flamer 3872 | -10/Subcaves | Destroyed by BA-HLG(R) with Subdweller Laser Last Messages --------------- Data stored: Materials terminal intel. Sub. Shrapnel Launcher falls loose from the Twisted Machinery. Flamer falls loose from the Twisted Machinery. 03578_ Triggered Piercing Trap. 03578_ Spikes shoot up from the floor. 03578_ Critical hit (Impale). 03586_ Triggered Shrapnel Trap. 03586_ An expanding cloud of shrapnel blasts out in all directions. 03589_ Searching scrap... 03589_ Found Sub. Monowheel. 03589_ Found Sub. Power Source. 03589_ Found 17 Matter. 03590_ Acquired 16 matter. 03619_ Triggered Piercing Trap. 03619_ Spikes shoot up from the floor. 03619_ Critical hit (Impale). 03636_ Triggered Piercing Trap. 03636_ Spikes shoot up from the floor. 03636_ Critical hit (Impale). 03844_ Sub. Power Source shoots sparks and powers down. Map ----- +----------------------------------------------------+ | | | | | ?????????????????????????????????????????????????? | | ?????????????????????????????????????????????????? | | ?????????????????????????????????????????????????? | | ?????????????????????????????????????????????????? | | ?????????????????????????????????????????????????? | | ?????????????????????????????????????????????????? | | ?????????????????????????????????????????????????? | | ?????????????????????????????????????????????????? | | ?????????????????????????????????????????????????? | | ?????????????????????????????????????????????????? | | ?????????????????????????????????????????????????? | | ?????????????????????????????????????????????????? | | ?????????????????????????????????????????????????? | | ?????????????????????????????????????????????????? | | ?????????????????????????????????##??????????????? | | ????????????????????????????????# ##?????????????? | | ???????????????????????????????# ??????????????? | | ?????????????????????????????? ???????????????? | | ????????????????????????????? R????????????????? | | ????????????????????????????# #?????????????????? | | ????????????????????????####R #??????????????????? | | ???????????????????????## ???????????????????? | | ???????????????????????# ?????????????????????? | | ???????????????????????# @#??????????????????????? | | ???????????????????????# #??????????????????????? | | ???????????????????????# #??????????????????????? | | ??????????????????????## #??????????????????????? | | ??????????????????????# #??????????????????????? | | ??????????????????????## #??????????????????????? | | ??????????????????????# ##?????????????????????? | | ??????????????????????## #?????????????????????? | | ??????????????????????## ###???????????????????? | | ??????????????????????# #######?????????????? | | ??????????????????????## ## ##????????????? | | ???????????????????????### ## ##???????????? | | ?????????????????????????### ## ##??????????? | | ???????????????????????????# ## ##?????????? | | ???????????????????????????## #?????????? | | ????????????????????????????## ## ##????????? | | ?????????????????????????????# ### ##???????? | | ?????????????????????????????# ##?# #######?? | | ?????????????????????????????####??## #?? | | ????????????????????????????????????## #?? | | ?????????????????????????????????????# #####?? | | ????????????????????????????????????## ##?????? | | ????????????????????????????????????# ##??????? | | ????????????????????????????????????# ##???????? | | ????????????????????????????????????## ####?????? | +----------------------------------------------------+ Best States ------------- Heat Dissipation 25 Energy Generation 15 Energy Capacity 200 Matter Stores 300 Matter Capacity 300 Sight Range 16 Terrain Scan Density 10 Armor Coverage 800 Weapon Shielding 33 Evasion (%) 55 Recoil Reduction 2 Salvage Targeting 1 Item Schematics ----------------- None Robot Schematics ------------------ None Fabricated ------------ Nothing Alien Tech Used ----------------- None Achievements -------------- None Challenges ------------ None Game ------ Seed GlidesysNetworkGravjet Manual? 0 Play Time 00:21:34 Cumulative 444.5 hours Start 2023.08.04 @ 17:58:25 End 2023.08.04 @ 18:21:58 Sessions 1 Manual Loads 0 Difficulty Rogue Special Mode None Game No. 496 Rogue 496 Adventurer 0 Explorer 0 Win Type - Total 12 Types 8/0/3/1/0/0/0/0/0 Lore% 80 Gallery% 89 Achievement% 80 Wizard Run 0 Options --------- ASCII 0 Keyboard 0 Movement Mouse Keybinds 0 Fullscreen 1 Font 18/Terminus Map View 76x50 Tactical HUD 1 Map Filters NONE Filters NONE Steam 1 RUN: 69cb1958-b719-4090-9411-6c5fa4b392cb